bitfinex/quotes_ETHUSD_20250807
["timestamp","ask_amount","ask_price","bid_price","bid_amount"]
[1754610709574,0.9139,3916.2,3916.1,0.678]
[1754610709946,0.9139,3916.2,3916.1,2.55356094]
[1754610710475,0.128,3916.6,3916.1,2.55356094]
[1754610710683,0.8139,3916.2,3916.1,2.55356094]
[1754610711179,0.4927,3916.9,3916.5,2.55327567]
[1754610711366,0.5807,3916.8,3916.5,2.55327567]
[1754610711568,0.4527,3916.7,3916.5,2.55327567]
[1754610711751,0.4527,3916.7,3916.4,2.55334773]
[1754610711947,0.128,3916.8,3916.6,0.55]
[1754610712152,0.4527,3916.7,3916.6,3.23120783]
[1754610712570,0.4527,3916.7,3916.6,0.678]
[1754610712762,0.9139,3916.7,3916.6,0.678]
[1754610713177,0.9139,3916.7,3916.6,2.68123494]
[1754610713363,0.04,3916.9,3916.6,2.68123494]
[1754610713364,0.04,3916.9,3916.7,2.55316691]
[1754610713559,0.9539,3916.9,3916.8,2.55310457]
[1754610714050,0.4927,3916.9,3916.8,2.55310457]
[1754610714249,0.4927,3916.9,3916.8,2.68110457]
[1754610714447,0.9539,3916.9,3916.8,2.68110457]
[1754610719191,0.9539,3916.9,3916.8,0.128]
[1754610719362,0.9539,3916.9,3916.8,2.55310457]
[1754610719563,0.9539,3916.9,3916.8,0.128]
[1754610719766,1.44049,3916.9,3916.5,2.68127615]
[1754610719954,0.9139,3916.8,3916.5,0.128]
[1754610720300,3.46705466,3916.8,3916.0,2.55356522]
[1754610720602,0.128,3916.6,3916.1,0.128]
[1754610720780,0.128,3916.6,3915.8,4.27]
[1754610720781,0.9139,3916.5,3915.8,4.27]
[1754610720973,0.9139,3916.4,3916.0,2.55360981]
[1754610721295,0.9139,3916.3,3916.0,2.55360981]
[1754610721467,0.4527,3916.3,3916.0,2.55360981]
[1754610721668,0.9139,3916.2,3915.9,2.68167376]
[1754610721866,0.9139,3916.1,3915.9,0.128]
[1754610722093,0.9139,3916.0,3915.8,2.55374328]
[1754610722297,3.916,3916.3,3915.8,0.128]
[1754610722298,0.9139,3915.9,3915.8,0.128]
[1754610722590,0.9139,3915.9,3915.4,2.68196404]
[1754610722754,0.9139,3915.8,3915.3,2.5540827]
[1754610722955,0.9139,3915.7,3915.3,2.6820827]
[1754610723156,0.128,3916.0,3915.4,2.55400101]
[1754610723357,0.9139,3915.6,3915.4,2.55400101]
[1754610723596,0.9139,3915.5,3915.4,2.55400101]
[1754610723963,0.4527,3915.5,3915.3,0.128]
[1754610724281,0.9139,3915.4,3915.3,0.128]
[1754610724486,0.9139,3915.4,3915.1,0.001]
[1754610724677,0.9139,3915.3,3915.2,0.128]
[1754610724902,0.9139,3915.3,3915.2,2.68214793]
[1754610725203,0.9139,3915.3,3915.2,0.128]
[1754610725562,0.9139,3915.3,3915.2,2.68214793]
[1754610725775,0.128,3915.7,3915.2,0.128]
[1754610725974,3.915,3915.8,3915.2,0.128]
[1754610726183,3.915,3915.8,3915.3,2.55403349]
[1754610726390,0.9139,3915.7,3915.2,2.68213084]
[1754610726590,3.915,3915.8,3915.3,2.55404744]
[1754610726770,0.9139,3915.6,3915.3,2.55404744]
[1754610726976,0.9139,3915.6,3915.2,2.68213721]
[1754610727176,3.915,3915.8,3915.2,2.68213721]
[1754610727390,0.9139,3915.5,3915.3,2.55406551]
[1754610727611,0.9139,3915.4,3915.3,2.55406551]
[1754610728212,0.9139,3915.4,3915.3,2.5540827]
[1754610728905,0.9139,3915.4,3915.2,2.68213538]
[1754610729109,0.9139,3915.4,3915.3,2.5540827]
[1754610730910,0.4527,3915.4,3915.3,2.5540827]
[1754610731408,0.4527,3915.4,3915.2,4.398]
[1754610731580,0.9139,3915.4,3915.2,4.398]
[1754610732183,0.9139,3915.4,3915.3,2.5540827]
[1754610732590,0.4527,3915.4,3915.3,2.5540827]
[1754610732787,0.4612,3915.6,3915.2,6.95210975]
[1754610732992,0.9139,3915.6,3915.2,6.95210975]
[1754610733315,3.911,3915.8,3915.3,3.01547149]
[1754610733502,3.911,3915.8,3915.5,2.55390407]
[1754610733808,3.911,3915.8,3915.7,2.55382179]
[1754610734011,0.128,3915.9,3915.8,2.55375657]
[1754610734310,0.002,3916.2,3916.1,3.10356094]
[1754610734610,0.002,3916.2,3916.1,3.72346094]
[1754610734814,0.002,3916.2,3916.1,3.23156094]
[1754610735912,0.002,3916.2,3916.1,2.55356094]
[1754610735913,0.9583,3916.2,3916.1,2.55356094]
[1754610738207,0.002,3916.2,3916.1,2.55356094]
[1754610738518,0.4745,3916.2,3916.1,2.55356094]
[1754610738717,0.9583,3916.2,3916.1,2.55356094]
[1754610739792,0.002,3916.2,3916.1,3.10356094]
[1754610739992,0.002,3916.2,3916.1,3.59546094]
[1754610740193,0.002,3916.2,3916.1,7.50546094]
[1754610740520,0.002,3916.2,3916.1,7.63346094]
[1754610741607,0.002,3916.2,3916.1,14.90346094]
[1754610741813,0.002,3916.2,3916.1,14.96386094]
[1754610742622,0.002,3916.2,3916.1,14.90346094]
[1754610743202,0.002,3916.2,3916.1,14.96386094]
[1754610745116,1e-08,3916.2,3916.1,14.83586094]
[1754610745304,1e-08,3916.2,3916.1,14.96386094]
[1754610746724,1e-08,3916.2,3916.1,10.69386094]
[1754610748427,0.128,3918.0,3916.1,10.63346094]
[1754610748600,0.9563,3918.3,3917.8,12.13452738]
[1754610748806,0.9563,3918.3,3917.8,16.04352738]
[1754610749230,3.0,3919.4,3917.8,16.04352738]
[1754610749539,0.4725,3918.1,3917.8,16.04352738]
[1754610749826,2.5515524,3919.2,3917.8,16.23645559]
[1754610749827,0.9563,3918.3,3917.8,16.23645559]
[1754610750229,0.9563,3918.3,3917.8,3.29538111]
[1754610750532,0.9563,3918.3,3917.8,7.21538111]
[1754610750727,2.55161807,3919.1,3917.8,7.21538111]
[1754610750933,0.9963,3917.9,3917.8,7.21538111]
[1754610751617,0.5125,3917.9,3917.8,7.21538111]
[1754610751999,0.9963,3917.9,3917.8,7.21838111]
[1754610752609,0.04,3917.9,3917.8,7.21838111]
[1754610752812,0.04,3917.9,3917.8,19.24845559]
[1754610753127,0.5125,3917.9,3917.8,19.24845559]
[1754610753536,0.04,3917.9,3917.8,10.21638111]
[1754610753703,0.04,3917.9,3917.8,19.24845559]
[1754610754905,0.9963,3917.9,3917.8,15.32745559]
[1754610755106,0.9963,3917.9,3917.8,19.25445559]
[1754610755515,0.9963,3917.9,3917.8,6.29538111]
[1754610755724,0.9963,3917.9,3916.6,0.4929]
[1754610755925,0.9963,3917.9,3917.6,2.55251881]
[1754610755926,0.04,3917.9,3917.6,2.55251881]
[1754610756125,0.04,3917.9,3917.7,3.927]
[1754610756306,0.04,3917.9,3916.6,0.4929]
[1754610756307,0.04,3917.9,3917.6,3.927]
[1754610756633,0.9563,3917.8,3917.6,3.927]
[1754610756803,0.9563,3917.7,3917.6,3.927]
[1754610757142,0.9563,3917.7,3917.6,2.55258321]
[1754610758632,0.9563,3917.7,3917.6,2.68058321]
[1754610759239,0.04,3917.9,3917.6,2.68058321]
[1754610759240,0.04,3917.9,3917.8,2.5524529]
[1754610759420,0.04,3917.9,3917.8,7.0334529]
[1754610759608,0.04,3917.9,3917.8,7.1614529]
[1754610759812,0.9963,3917.9,3917.8,7.1614529]
[1754610760027,0.5125,3917.9,3917.8,7.1614529]
[1754610760225,0.9963,3917.9,3917.8,7.1614529]
[1754610760422,0.9963,3917.9,3917.8,3.2304529]
[1754610760632,0.9963,3917.9,3917.8,0.128]
[1754610760840,0.9963,3917.9,3917.7,3.931]
[1754610761042,0.04,3917.9,3917.7,3.932]
[1754610761224,0.9563,3917.8,3917.7,3.932]
[1754610762315,0.9563,3917.8,3917.7,3.931]
[1754610763529,0.9563,3917.8,3917.6,0.128]
[1754610763753,0.9092,3917.7,3917.6,0.128]
[1754610764921,0.9092,3917.7,3917.6,2.68058321]
[1754610765448,0.9092,3917.7,3917.6,0.128]
[1754610765763,0.9092,3917.7,3917.6,3.93]
[1754610766050,0.9092,3917.7,3917.5,0.128]
[1754610766227,0.9092,3917.6,3917.5,0.128]
[1754610767071,0.9092,3917.6,3917.3,3.927]
[1754610767250,0.128,3917.8,3917.3,3.927]
[1754610767419,0.9092,3917.5,3917.3,3.927]
[1754610767620,0.128,3917.8,3917.3,3.927]
[1754610767845,0.9092,3917.4,3917.3,3.927]
[1754610768640,0.9092,3917.4,3917.2,0.128]
[1754610768818,1.25538317,3917.3,3916.8,4.055]
[1754610769024,0.128,3917.4,3916.8,4.055]
[1754610769025,0.9092,3917.2,3916.8,4.055]
[1754610769235,0.128,3917.4,3916.8,4.055]
[1754610769236,0.9092,3917.1,3916.8,4.055]
[1754610769431,2.68073661,3917.4,3916.8,4.055]
[1754610769646,0.9092,3917.0,3916.8,4.055]
[1754610769854,0.9092,3916.9,3916.8,4.055]
[1754610770556,0.9092,3916.9,3916.8,3.927]
[1754610771936,0.9092,3916.9,3916.6,0.001]
[1754610772138,0.9092,3916.8,3916.6,0.001]
[1754610772514,0.9092,3916.7,3916.6,0.001]
[1754610780675,0.128,3916.9,3916.6,0.001]
[1754610780877,0.455,3916.9,3916.6,0.001]
[1754610781063,0.9092,3916.8,3916.6,0.001]
[1754610781784,0.9092,3916.7,3916.6,0.001]
[1754610782576,0.455,3916.7,3916.6,0.001]
[1754610782781,0.4542,3916.9,3916.6,2.5542194]
[1754610783078,0.583,3917.0,3916.6,2.55423494]
[1754610783079,0.4542,3916.8,3916.6,2.55423494]
[1754610783294,0.455,3916.9,3916.6,0.001]
[1754610783491,0.455,3916.9,3916.7,2.55316976]
[1754610783691,0.9092,3916.9,3916.8,2.55310457]
[1754610783989,0.455,3917.2,3916.9,2.55303939]
[1754610784203,0.002,3917.6,3917.0,0.55]
[1754610784490,0.002,3917.6,3917.4,2.55265553]
[1754610785076,0.9112,3917.6,3917.4,2.55265553]
[1754610785278,0.4562,3917.6,3917.4,2.55265553]
[1754610785447,0.455,3917.5,3917.4,2.55265553]
[1754610785648,0.9092,3917.5,3917.2,3.10283159]
[1754610785901,0.002,3917.6,3917.4,0.55]
[1754610786113,0.002,3917.6,3917.4,3.23069377]
[1754610786258,0.457,3917.6,3917.4,3.23069377]
[1754610786459,0.9112,3917.6,3917.5,3.10264837]
[1754610787188,0.9112,3917.6,3917.5,0.55]
[1754610787359,0.9112,3917.6,3917.4,2.68069881]
[1754610787360,0.9112,3917.6,3917.4,0.128]
[1754610787559,0.002,3917.6,3917.0,0.55]
[1754610787757,0.9092,3917.5,3917.3,0.128]
[1754610788081,0.9092,3917.4,3917.3,0.678]
[1754610788458,0.9092,3917.4,3917.3,0.128]
[1754610788887,0.9092,3917.4,3917.1,2.55290903]
[1754610789091,0.9092,3917.3,3917.1,2.55290903]
[1754610789295,0.13,3917.6,3917.1,2.55290903]
[1754610789656,0.9092,3917.5,3917.2,2.55282794]
[1754610790092,1.0372,3917.4,3917.0,2.5529617]
[1754610790264,0.9092,3917.3,3916.9,0.128]
[1754610790465,2.55284386,3917.2,3916.6,0.001]
[1754610790716,0.128,3917.0,3916.6,0.001]
[1754610791065,0.9092,3916.9,3916.6,0.001]
[1754610791498,0.9092,3916.8,3916.6,0.001]
[1754610791860,0.455,3916.7,3916.6,0.001]
[1754610792190,0.9092,3916.7,3916.6,0.001]
[1754610795588,0.9284,3916.7,3916.6,0.001]
[1754610797584,0.04,3917.9,3916.7,0.55]
[1754610797811,0.463,3917.4,3916.7,3.1031519]
[1754610798112,0.463,3917.4,3917.0,2.55297131]
[1754610798317,0.9364,3917.4,3916.7,0.55]
[1754610798488,0.4734,3917.3,3916.8,2.55309444]
[1754610798688,0.9364,3917.3,3916.8,2.55309444]
[1754610798905,0.9364,3917.2,3916.8,2.55309444]
[1754610799107,0.9364,3917.1,3916.8,2.55309444]
[1754610799509,0.002,3916.9,3916.8,3.10309444]
[1754610800806,0.465,3916.9,3916.8,3.10309444]
[1754610801927,0.465,3916.9,3916.6,0.001]
[1754610802094,0.9364,3916.8,3916.6,0.001]
[1754610802495,0.9364,3916.7,3916.6,0.001]
[1754610804658,3.97490976,3916.7,3916.6,0.001]
[1754610807532,4.10290976,3916.7,3916.6,0.001]
[1754610813834,7.10290976,3916.7,3916.6,0.001]
[1754610814133,7.64797528,3916.7,3916.6,0.001]
[1754610814534,22.14797528,3916.7,3916.6,0.001]
[1754610816403,31.18004976,3916.7,3916.6,0.001]
[1754610817610,35.08904976,3916.7,3916.6,0.001]
[1754610818228,26.05697528,3916.7,3916.6,0.001]
[1754610818624,5.55343053,3916.3,3916.2,0.001]
[1754610818829,19.89454425,3916.3,3916.2,0.001]
[1754610819135,20.83094425,3916.3,3916.2,0.001]
[1754610819438,20.95894425,3916.3,3916.2,0.001]
[1754610822323,35.45894425,3916.3,3916.2,0.001]
[1754610822535,2.55349573,3916.2,3916.1,0.001]
[1754610822735,6.58988201,3916.2,3916.1,0.001]
[1754610822948,10.49888201,3916.2,3916.1,0.001]
[1754610826044,24.99888201,3916.2,3916.1,0.001]
[1754610826236,2.55369136,3915.9,3915.8,0.001]
[1754610826437,12.17690259,3915.9,3915.8,0.001]
[1754610826640,12.68967764,3915.9,3915.8,0.001]
[1754610826844,13.64037764,3915.9,3915.8,0.001]
[1754610827331,8.78167764,3915.9,3915.8,0.001]
[1754610827527,5.68169136,3915.9,3915.8,0.4877]
[1754610827742,9.58969136,3915.9,3915.8,0.4877]
[1754610830163,9.58969136,3915.9,3915.8,0.001]
[1754610832734,17.628,3915.9,3915.8,0.001]
[1754610832930,7.037,3915.9,3915.8,0.4877]
[1754610833134,4.037,3915.9,3915.8,0.4877]
[1754610834565,0.128,3915.9,3915.8,0.4877]
[1754610834736,0.4509,3916.7,3915.8,0.4877]
[1754610834936,0.128,3916.0,3915.9,2.55363147]
[1754610835158,4.037,3916.0,3915.9,3.10073147]
[1754610835363,3.909,3916.0,3915.9,3.10073147]
[1754610837583,3.908,3916.3,3916.1,2.55353883]
[1754610837754,3.908,3916.3,3916.1,3.04023883]
[1754610838154,3.908,3916.3,3916.1,2.55353883]
[1754610838347,3.908,3916.3,3916.2,0.4867]
[1754610838758,3.908,3916.3,3916.0,2.55360572]
[1754610838975,3.908,3916.3,3916.0,3.04030572]
[1754610839390,3.908,3916.3,3916.1,0.4867]
[1754610839567,3.908,3916.3,3916.1,3.04026009]
[1754610840603,3.908,3916.3,3916.0,2.55360903]
[1754610840799,3.908,3916.3,3915.8,2.68274424]
[1754610841102,3.908,3916.3,3916.1,3.04023826]
[1754610841502,3.908,3916.3,3916.1,0.4867]
[1754610841708,3.908,3916.3,3916.0,2.55360499]
[1754610842301,3.908,3916.3,3916.1,2.55355886]
[1754610842513,3.908,3916.3,3916.0,2.55361945]
[1754610842689,3.908,3916.3,3916.0,2.55362614]
[1754610843386,3.908,3916.3,3915.8,0.129]
[1754610843585,4.8607,3916.3,3915.8,2.68271342]
[1754610843901,1.0787,3916.2,3915.8,2.55471342]
[1754610844078,0.9507,3916.1,3915.8,2.55471342]
[1754610844280,3.908,3916.0,3915.8,2.55471342]
[1754610844602,4.3589,3916.0,3915.8,2.55471342]
[1754610844797,4.3589,3916.0,3915.8,0.001]
[1754610845309,0.5789,3916.2,3915.8,0.001]
[1754610845475,3.908,3916.1,3915.9,2.55369136]
[1754610845883,3.908,3916.1,3916.0,0.4867]
[1754610847202,3.908,3916.1,3915.9,2.55369136]
[1754610847611,3.908,3916.1,3915.9,3.04039136]
[1754610848122,3.908,3916.1,3915.9,2.55367957]
[1754610848929,3.908,3916.1,3915.8,2.55473562]
[1754610849128,3.908,3916.1,3915.9,2.55367917]
[1754610849478,3.908,3916.1,3915.8,3.0414364]
[1754610849736,3.908,3916.1,3915.8,2.5547364]
[1754610850316,3.908,3916.1,3915.9,2.55367903]
[1754610850808,3.908,3916.1,3915.8,2.55473723]
[1754610851112,4.3589,3916.1,3915.8,2.55473723]
[1754610851514,4.3589,3916.1,3915.9,2.55366685]
[1754610851730,4.3589,3916.1,3915.9,2.55369136]
[1754610852080,4.8587,3916.1,3915.9,2.55369136]
[1754610852797,0.4509,3916.0,3915.9,2.55369136]
[1754610853120,4.8587,3916.1,3915.9,2.55369136]
[1754610853319,4.3589,3916.1,3916.0,2.55362614]
[1754610853613,3.908,3916.1,3916.0,2.55362614]
[1754610853909,4.3447,3916.1,3916.0,2.55362614]
[1754610856120,4.3437,3916.1,3916.0,2.55362614]
[1754610858722,4.8285,3916.1,3916.0,2.55362614]
[1754610863617,4.8285,3916.1,3915.8,0.001]
[1754610863819,0.4367,3916.0,3915.9,2.55369136]
[1754610865301,0.128,3916.2,3916.1,2.55356094]
[1754610865623,4.035,3916.2,3916.1,2.55356094]
[1754610865925,4.4717,3916.2,3916.1,2.55356094]
[1754610866095,4.9565,3916.2,3916.1,2.55356094]
[1754610867526,4.9565,3916.2,3916.0,2.5546099]
[1754610867727,0.9215,3916.1,3916.0,2.5546099]
[1754610872341,0.128,3916.1,3916.0,0.001]
[1754610872635,1.0495,3916.1,3916.0,2.55462614]
[1754610872816,4.9555,3916.1,3916.0,2.55462614]
[1754610873839,4.9555,3916.1,3916.0,0.001]
[1754610874137,4.9555,3916.1,3916.0,2.55462614]
[1754610875502,4.034,3916.1,3916.0,2.55462614]
[1754610875698,4.4707,3916.1,3916.0,2.55462614]
[1754610876105,4.9555,3916.1,3916.0,2.55462614]
[1754610876942,4.034,3916.1,3916.0,2.55462614]
[1754610877716,4.4707,3916.1,3916.0,2.55462614]
[1754610878214,0.002,3916.3,3916.2,3.10349573]
[1754610878432,0.002,3916.3,3916.2,7.00949573]
[1754610878719,0.002,3916.3,3916.2,7.68509573]
[1754610879507,0.002,3916.3,3916.2,7.62469573]
[1754610880042,0.002,3916.3,3916.2,7.81448278]
[1754610882007,0.002,3916.3,3916.2,7.32728278]
[1754610882212,0.002,3916.3,3916.2,7.81448278]
[1754610883945,0.9011,3916.3,3916.2,2.55349573]
[1754610884146,0.9011,3916.3,3916.0,0.001]
[1754610884444,1.0271,3916.2,3916.0,2.5546069]
[1754610884748,0.8991,3916.1,3916.0,0.001]
[1754610885444,0.8991,3916.1,3916.0,2.55462614]
[1754610886243,0.8991,3916.1,3916.0,0.001]
[1754610886244,4.8041,3916.1,3916.0,0.001]
[1754610886550,4.8041,3916.1,3916.0,2.55462614]
[1754610887210,5.29751,3916.1,3916.0,0.001]
[1754610887413,5.42551,3916.1,3916.0,0.001]
[1754610888327,8.01099045,3916.1,3916.0,0.001]
[1754610888512,5.42551,3916.1,3916.0,0.001]
[1754610889144,7.97907094,3916.1,3916.0,0.001]
[1754610891750,23.02068762,3916.1,3916.0,0.001]
[1754610891958,23.02069935,3916.1,3916.0,0.001]
[1754610892461,23.02069935,3916.1,3916.0,0.801]
[1754610893045,19.11569935,3916.1,3916.0,0.801]
[1754610893246,23.02069935,3916.1,3916.0,0.801]
[1754610893719,19.56803841,3916.1,3916.0,0.801]
[1754610893920,19.51562841,3916.1,3916.0,0.801]
[1754610894325,5.01562841,3916.1,3916.0,0.801]
[1754610894527,4.474,3916.1,3916.0,0.801]
[1754610894794,4.9321,3916.1,3916.0,0.801]
[1754610895054,5.47372841,3916.1,3916.0,0.801]
[1754610895221,0.128,3916.1,3916.0,3.35462614]
[1754610895426,0.002,3916.3,3916.2,3.10349573]
[1754610895654,0.002,3916.9,3916.5,0.55]
[1754610895960,0.002,3916.9,3916.6,3.41356714]
[1754610896249,0.002,3916.9,3916.6,4.08246714]
[1754610897224,0.002,3916.9,3916.6,4.02206714]
[1754610897653,0.00054168,3916.7,3916.6,4.02206714]
[1754610901562,0.00054168,3916.7,3916.6,4.08246714]
[1754610903433,0.00054168,3916.7,3916.6,4.02206714]
[1754610904634,0.00054168,3916.7,3916.6,12.57364162]
[1754610904842,0.00054168,3916.7,3916.6,16.47764162]
[1754610909837,0.89964168,3916.7,3916.6,0.128]
[1754610910039,0.89964168,3916.7,3916.5,2.55324921]
[1754610910231,0.8991,3916.6,3916.5,2.55324921]
[1754610910644,0.8991,3916.6,3916.4,6.45634367]
[1754610910873,0.8991,3916.5,3916.4,2.55336533]
[1754610911070,0.8991,3916.5,3916.0,0.801]
[1754610911249,0.8991,3916.4,3916.1,2.68156094]
[1754610911448,0.128,3916.6,3916.3,2.5534291]
[1754610911670,0.8991,3916.5,3916.3,2.5534291]
[1754610911870,0.128,3916.6,3916.3,2.5534291]
[1754610912075,0.8991,3916.4,3916.3,2.5534291]
[1754610914585,0.8991,3916.4,3916.2,2.55347355]
[1754610914879,0.9174,3916.3,3916.2,2.55347355]
[1754610915472,0.9174,3916.3,3916.0,4.704]
[1754610915663,0.9174,3916.2,3916.1,2.55349722]
[1754610916580,0.9174,3916.2,3916.0,7.25761921]
[1754610916749,0.4507,3916.2,3916.0,7.25761921]
[1754610917083,0.9174,3916.1,3916.0,0.801]
[1754610917323,1.0454,3916.1,3916.0,0.801]
[1754610919986,1.0454,3916.1,3916.0,3.35462614]
[1754610920384,1.0454,3916.1,3916.0,0.801]
[1754610921794,2.55371964,3916.7,3916.6,3.10323494]
[1754610921795,0.00054168,3916.7,3916.6,3.10323494]
[1754610921996,0.00054168,3916.7,3916.6,7.54003494]
[1754610922462,0.00054168,3916.7,3916.6,7.10849294]
[1754610922659,0.00054168,3916.7,3916.6,7.00623494]
[1754610922862,0.00054168,3916.7,3916.6,8.18458343]
[1754610923062,0.00054168,3916.7,3916.6,7.47963494]
[1754610927391,0.00054168,3916.7,3916.6,7.00623494]
[1754610927803,0.00054168,3916.7,3916.6,2.55323494]
[1754610928004,0.91794168,3916.7,3916.6,2.55323494]
[1754610929119,0.00054168,3916.7,3916.6,2.55323494]
[1754610929321,0.00054168,3916.7,3916.6,7.47863494]
[1754610929826,0.00054168,3916.7,3916.6,7.00523494]
[1754610931319,0.00054168,3916.7,3916.6,7.47863494]
[1754610931702,0.00054168,3916.7,3916.6,7.13323494]
[1754610932014,0.45124168,3916.7,3916.6,7.13323494]
[1754610932227,0.91794168,3916.7,3916.5,2.55324739]
[1754610932376,0.9174,3916.6,3916.5,2.55324739]
[1754610934219,0.00054168,3916.7,3916.6,2.55323494]
[1754610937220,0.45124168,3916.7,3916.6,2.55323494]
[1754610937521,0.91794168,3916.7,3916.6,2.55323494]
[1754610937915,0.00054168,3916.7,3916.6,2.55323494]
[1754610938306,0.45124168,3916.7,3916.6,2.55323494]
[1754610938828,0.00054168,3916.7,3916.6,2.55323494]
[1754610939023,0.46724168,3916.7,3916.6,2.55323494]
[1754610939327,0.45124168,3916.7,3916.6,2.55323494]
[1754610940531,0.91794168,3916.7,3916.6,2.55323494]
[1754610942322,0.6003346,3916.7,3916.5,2.68128819]
[1754610942497,0.4667,3916.6,3916.5,2.55328819]
[1754610944330,0.914,3916.6,3916.3,2.68142231]
[1754610944731,0.4473,3916.5,3916.3,2.68142231]
[1754610944929,0.9393,3916.4,3916.3,2.68142231]
[1754610945100,0.9393,3916.4,3916.1,2.55356094]
[1754610945297,0.128,3916.5,3916.2,2.55348841]
[1754610945523,0.9393,3916.3,3916.2,2.55348841]
[1754610945733,0.9393,3916.3,3916.0,0.801]
[1754610946033,0.9393,3916.2,3916.0,0.801]
[1754610946223,0.9393,3916.1,3916.0,0.801]
[1754610946950,0.9393,3916.1,3915.8,2.5547418]
[1754610946951,2.55368171,3916.0,3915.8,0.001]
[1754610947116,2.90298953,3915.9,3915.8,0.001]
[1754610947304,3.84228953,3915.9,3915.8,0.001]
[1754610947504,7.74428953,3915.9,3915.8,0.001]
[1754610953218,22.24428953,3915.9,3915.8,0.001]
[1754610956338,7.74428953,3915.9,3915.8,0.001]
[1754610956645,7.74528953,3915.9,3915.8,0.001]
[1754610956808,22.24528953,3915.9,3915.8,0.001]
[1754610957008,22.37328953,3915.9,3915.8,0.001]
[1754610957239,18.47028953,3915.9,3915.8,0.001]
[1754610957448,0.128,3915.9,3915.8,0.001]
[1754610957612,3.903,3916.0,3915.8,0.8463]
[1754610957938,2.55324832,3916.6,3916.0,2.55362614]
[1754610957939,3.903,3916.4,3916.0,2.55362614]
[1754610958240,0.128,3916.3,3916.2,2.55349573]
[1754610958440,0.128,3916.3,3916.1,0.4679]
[1754610958844,0.128,3916.3,3915.9,2.55364106]
[1754610959040,0.128,3916.3,3915.9,3.02154106]
[1754610960448,0.128,3916.3,3916.0,2.5535686]
[1754610960647,3.903,3916.2,3916.0,3.0214686]
[1754610961244,3.903,3916.2,3916.0,2.5535686]
[1754610964646,4.395,3916.2,3916.0,2.5535686]
[1754610964945,4.8423,3916.2,3916.0,2.5535686]
[1754610965146,4.395,3916.2,3915.9,2.55367999]
[1754610965447,0.9393,3916.1,3915.8,0.001]
[1754610966043,0.9393,3916.0,3915.8,0.001]
[1754610966344,1.0673,3916.0,3915.8,0.001]
[1754610966645,3.903,3916.0,3915.9,3.39899136]
[1754610966848,3.903,3916.0,3915.9,3.52699136]
[1754610967842,0.128,3916.5,3916.1,2.55352322]
[1754610968052,3.903,3916.4,3916.1,2.55352322]
[1754610969946,4.8423,3916.4,3916.0,2.55362028]
[1754610970449,4.8423,3916.4,3916.1,2.55354847]
[1754610971551,4.8423,3916.4,3916.0,2.55361288]
[1754610971753,0.492,3916.3,3916.0,2.55361288]
[1754610972357,0.492,3916.3,3916.1,2.55355327]
[1754610973060,4.3503,3916.4,3916.1,2.55355327]
[1754610973256,4.8423,3916.4,3916.1,2.55355327]
[1754610973554,4.7423,3916.4,3916.1,2.55355327]
[1754610974865,0.128,3916.5,3916.2,2.55348059]
[1754610975158,3.902,3916.4,3916.2,2.55348059]
[1754610975456,0.128,3916.5,3916.2,2.55348059]
[1754610975643,3.902,3916.4,3916.2,2.55348059]
[1754610975848,1.0354,3916.5,3916.2,2.55348059]
[1754610976047,3.902,3916.4,3916.2,2.55348059]
[1754610976554,4.3695,3916.4,3916.2,2.55348059]
[1754610976725,4.8094,3916.4,3916.2,2.55348059]
[1754610977228,0.9074,3916.4,3916.2,2.55348059]
[1754610977430,0.9074,3916.4,3916.1,2.55353878]
[1754610977629,3.902,3916.3,3916.1,2.55353878]
[1754610978052,3.902,3916.3,3916.2,2.55349573]
[1754610978363,4.3695,3916.3,3916.2,2.55349573]
[1754610978728,4.3695,3916.3,3916.1,2.5535493]
[1754610978927,4.3695,3916.3,3916.0,2.55362255]
[1754610979132,0.4675,3916.2,3916.0,2.55362255]
[1754610979355,0.9074,3916.2,3916.0,2.55362255]
[1754610979676,0.4675,3916.1,3915.9,2.55367765]
[1754610979843,3.902,3916.0,3915.9,2.55367765]
[1754610980169,3.902,3916.0,3915.9,2.55369136]
[1754610980365,4.3695,3916.0,3915.9,2.55369136]
[1754610980963,4.8094,3916.0,3915.9,2.55369136]
[1754610981260,4.8094,3916.0,3915.8,4.271]
[1754610981430,0.9074,3915.9,3915.8,4.271]
[1754610983763,4.03,3916.0,3915.8,4.271]
[1754610984065,0.4675,3915.9,3915.8,4.271]
[1754610984249,0.9074,3915.9,3915.8,0.001]
[1754610990486,4.3695,3915.9,3915.8,0.001]
[1754610991049,4.8094,3915.9,3915.8,0.001]
[1754610992279,4.3695,3915.9,3915.8,0.001]
[1754610992487,3.902,3915.9,3915.8,0.001]
[1754610994294,0.128,3916.0,3915.8,0.001]
[1754610994458,3.901,3915.9,3915.8,0.001]
[1754610995488,4.3685,3915.9,3915.8,0.001]
[1754610996587,4.8084,3915.9,3915.8,0.001]
[1754610997885,0.9074,3915.9,3915.8,0.001]
[1754610998192,3.901,3915.9,3915.8,2.55475657]
[1754610998404,0.53461518,3916.3,3915.9,2.55369136]
[1754610998602,3.901,3916.2,3916.0,3.0475082]
[1754610999067,3.901,3916.2,3916.1,2.55356094]
[1754610999467,0.002,3916.4,3916.1,2.55356094]
[1754610999767,3.901,3916.2,3916.0,3.04750519]
[1754610999970,0.002,3916.4,3916.1,2.55355035]
[1754611000268,3.901,3916.3,3916.1,2.55355035]
[1754611001888,0.002,3916.4,3916.0,3.04751414]
[1754611002289,3.901,3916.3,3916.0,3.04751414]